[Event "*** Titled Tuesday Blitz"]
[Site "Chess.com"]
[Date "2021.02.02"]
[Round "6"]
[White "barriochess"]
[Black "Khnykin_Nikolay"]
[Result "1-0"]
[WhiteElo "2424"]
[BlackElo "2088"]
[TimeControl "180+1"]
[EndTime "11:07:06 PST"]
[Termination "barriochess won by checkmate"]

1. d4 {[%clk 0:03:00.9]} 1... e6 {[%clk 0:02:58.4]} 2. c4 {[%clk 0:03:00.8]}
2... f5 {[%clk 0:02:55.5]} 3. g3 {[%clk 0:03:00]} 3... Nf6 {[%clk 0:02:54]} 4.
Bg2 {[%clk 0:03:00.3]} 4... Be7 {[%clk 0:02:50]} 5. Nf3 {[%clk 0:03:00.6]} 5...
O-O {[%clk 0:02:48.3]} 6. O-O {[%clk 0:03:00.8]} 6... d5 {[%clk 0:02:47.1]} 7.
Qc2 {[%clk 0:02:56.9]} 7... c6 {[%clk 0:02:45.4]} 8. b3 {[%clk 0:02:56.6]} 8...
Ne4 {[%clk 0:02:44.2]} 9. Bb2 {[%clk 0:02:52.4]} 9... Bd6 {[%clk 0:02:40]} 10.
Ba3 {[%clk 0:02:49.9]} 10... Bxa3 {[%clk 0:02:38]} 11. Nxa3 {[%clk 0:02:49.7]}
11... f4 {[%clk 0:02:30.2]} 12. Ne5 {[%clk 0:02:47.3]} 12... fxg3 {[%clk
0:02:28.1]} 13. hxg3 {[%clk 0:02:47.1]} 13... Nd7 {[%clk 0:02:26.8]} 14. Nxd7
{[%clk 0:02:46.1]} 14... Bxd7 {[%clk 0:02:27.7]} 15. Bxe4 {[%clk 0:02:46.4]}
15... dxe4 {[%clk 0:02:26]} 16. Qxe4 {[%clk 0:02:47.3]} 16... Qg5 {[%clk
0:02:22.3]} 17. Nc2 {[%clk 0:02:45.5]} 17... Rae8 {[%clk 0:02:19.9]} 18. Ne3
{[%clk 0:02:45.3]} 18... c5 {[%clk 0:02:10.4]} 19. Qe5 {[%clk 0:02:44.5]} 19...
Qg6 {[%clk 0:02:03.8]} 20. Qxc5 {[%clk 0:02:41.7]} 20... Bc6 {[%clk 0:01:55.3]}
21. Qe5 {[%clk 0:02:41.4]} 21... Qh6 {[%clk 0:01:51.6]} 22. f3 {[%clk
0:02:30.4]} 22... Rf5 {[%clk 0:01:35.5]} 23. Nxf5 {[%clk 0:02:29.4]} 23... exf5
{[%clk 0:01:36]} 24. Qf4 {[%clk 0:02:29.6]} 24... Qh5 {[%clk 0:00:28.5]} 25. Rf2
{[%clk 0:02:27.2]} 25... g5 {[%clk 0:00:19.7]} 26. Qxf5 {[%clk 0:02:26.9]} 26...
Rf8 {[%clk 0:00:16.2]} 27. Qg4 {[%clk 0:02:27]} 27... Qg6 {[%clk 0:00:15]} 28.
d5 {[%clk 0:02:27]} 28... Be8 {[%clk 0:00:14.1]} 29. Qe4 {[%clk 0:02:19.9]}
29... Qg7 {[%clk 0:00:13.6]} 30. Rd1 {[%clk 0:02:15.5]} 30... Bf7 {[%clk
0:00:12.7]} 31. Qd4 {[%clk 0:02:14.7]} 31... Qh6 {[%clk 0:00:11.6]} 32. Rh2
{[%clk 0:02:14.8]} 32... Qg6 {[%clk 0:00:10.9]} 33. g4 {[%clk 0:02:14.5]} 33...
Be8 {[%clk 0:00:09.6]} 34. Qe5 {[%clk 0:02:12.6]} 34... Bf7 {[%clk 0:00:09.4]}
35. Rh5 {[%clk 0:02:12.6]} 35... Be8 {[%clk 0:00:09]} 36. Rxg5 {[%clk
0:02:12.6]} 36... Qxg5 {[%clk 0:00:08.7]} 37. Qxg5+ {[%clk 0:02:12.2]} 37... Bg6
{[%clk 0:00:09.3]} 38. d6 {[%clk 0:02:11.2]} 38... Kg7 {[%clk 0:00:07.6]} 39. d7
{[%clk 0:02:10.9]} 39... Rf7 {[%clk 0:00:06.1]} 40. d8=Q {[%clk 0:02:10.5]}
40... h6 {[%clk 0:00:06.4]} 41. Qd4+ {[%clk 0:02:09.6]} 41... Kh7 {[%clk
0:00:05.9]} 42. Qge5 {[%clk 0:02:10.5]} 42... Rg7 {[%clk 0:00:05.1]} 43. Qxg7#
{[%clk 0:02:10.5]} 1-0

[Event "*** Titled Tuesday Blitz"]
[Site "Chess.com"]
[Date "2021.02.02"]
[Round "6"]
[White "paulrusan"]
[Black "flexova"]
[Result "0-1"]
[WhiteElo "2259"]
[BlackElo "2428"]
[TimeControl "180+1"]
[EndTime "11:07:07 PST"]
[Termination "flexova won by resignation"]

1. e4 {[%clk 0:03:00.9]} 1... e6 {[%clk 0:02:59.4]} 2. Nf3 {[%clk 0:03:00.4]}
2... d5 {[%clk 0:02:59.4]} 3. e5 {[%clk 0:03:01.1]} 3... Bd7 {[%clk 0:02:59.2]}
4. d4 {[%clk 0:03:00.3]} 4... c5 {[%clk 0:02:59.5]} 5. c3 {[%clk 0:03:00.3]}
5... Nc6 {[%clk 0:02:56.2]} 6. a3 {[%clk 0:02:59.2]} 6... f6 {[%clk 0:02:56.1]}
7. exf6 {[%clk 0:02:58.3]} 7... Nxf6 {[%clk 0:02:57]} 8. b4 {[%clk 0:02:58.6]}
8... cxb4 {[%clk 0:02:50.9]} 9. a4 {[%clk 0:02:58.2]} 9... bxc3 {[%clk
0:02:47.7]} 10. Nxc3 {[%clk 0:02:57.4]} 10... Bb4 {[%clk 0:02:47.3]} 11. Bd2
{[%clk 0:02:57.8]} 11... O-O {[%clk 0:02:46.7]} 12. Bd3 {[%clk 0:02:56.9]} 12...
Qa5 {[%clk 0:02:46.2]} 13. Qb3 {[%clk 0:02:54]} 13... Rac8 {[%clk 0:02:43.7]}
14. O-O {[%clk 0:02:49]} 14... Nxd4 {[%clk 0:02:34.5]} 15. Nxd4 {[%clk
0:02:48.4]} 15... Bxc3 {[%clk 0:02:34.8]} 16. Bxc3 {[%clk 0:02:45.2]} 16... Rxc3
{[%clk 0:02:35.7]} 17. Qb1 {[%clk 0:02:45.2]} 17... e5 {[%clk 0:02:31.7]} 18.
Ne2 {[%clk 0:02:27.3]} 18... Rc7 {[%clk 0:02:29.8]} 19. f4 {[%clk 0:02:20.3]}
19... e4 {[%clk 0:02:27.8]} 20. Bb5 {[%clk 0:02:20.4]} 20... Bxb5 {[%clk
0:02:09.3]} 21. axb5 {[%clk 0:02:18.7]} 21... Qb6+ {[%clk 0:02:09.6]} 22. Kh1
{[%clk 0:02:18.3]} 22... d4 {[%clk 0:02:10.2]} 23. Ng3 {[%clk 0:02:10.4]} 23...
h6 {[%clk 0:02:04]} 24. Nxe4 {[%clk 0:02:09.3]} 24... Ng4 {[%clk 0:02:02]} 25.
h3 {[%clk 0:02:03.3]} 25... Ne3 {[%clk 0:02:01.8]} 26. Rf3 {[%clk 0:02:01.3]}
26... Rf5 {[%clk 0:01:47.9]} 27. Nf2 {[%clk 0:02:00.6]} 27... Rxb5 {[%clk
0:01:44.4]} 28. Qe4 {[%clk 0:01:54.6]} 28... Rb2 {[%clk 0:01:36.2]} 29. f5
{[%clk 0:01:41.6]} 29... Qf6 {[%clk 0:01:06.2]} 30. Rxa7 {[%clk 0:01:31.5]}
30... Rc1+ {[%clk 0:01:05.1]} 31. Kh2 {[%clk 0:01:28.1]} 31... Nf1+ {[%clk
0:01:04.5]} 32. Kg1 {[%clk 0:01:28.3]} 32... Ng3+ {[%clk 0:01:03.4]} 33. Kh2
{[%clk 0:01:27.9]} 33... Nxe4 {[%clk 0:01:03.5]} 34. Nxe4 {[%clk 0:01:27.7]}
34... Qe5+ {[%clk 0:01:01.8]} 35. Ng3 {[%clk 0:01:28]} 35... Rcc2 {[%clk
0:01:01.3]} 36. h4 {[%clk 0:01:13.7]} 36... Rxg2+ {[%clk 0:00:58.8]} 37. Kh3
{[%clk 0:01:14.1]} 37... Rxg3+ {[%clk 0:00:50.6]} 38. Rxg3 {[%clk 0:01:13.7]}
38... Qxf5+ {[%clk 0:00:50.7]} 0-1

[Event "*** Titled Tuesday Blitz"]
[Site "Chess.com"]
[Date "2021.02.02"]
[Round "6"]
[White "PelinGorki"]
[Black "druskacik"]
[Result "1-0"]
[WhiteElo "2471"]
[BlackElo "2586"]
[TimeControl "180+1"]
[EndTime "11:07:09 PST"]
[Termination "PelinGorki won by checkmate"]

1. e4 {[%clk 0:03:00.9]} 1... c5 {[%clk 0:02:59.5]} 2. a3 {[%clk 0:02:50.7]}
2... Nc6 {[%clk 0:02:53.4]} 3. b4 {[%clk 0:02:50.8]} 3... b6 {[%clk 0:02:40.1]}
4. Nf3 {[%clk 0:02:48.4]} 4... Nf6 {[%clk 0:02:35.8]} 5. Nc3 {[%clk 0:02:47.7]}
5... g6 {[%clk 0:02:30.6]} 6. Rb1 {[%clk 0:02:46.7]} 6... Bg7 {[%clk 0:02:29.3]}
7. Bc4 {[%clk 0:02:43.9]} 7... O-O {[%clk 0:02:28.1]} 8. bxc5 {[%clk 0:02:39.3]}
8... bxc5 {[%clk 0:02:27.7]} 9. O-O {[%clk 0:02:39.8]} 9... e6 {[%clk
0:02:26.1]} 10. Re1 {[%clk 0:02:33.9]} 10... d5 {[%clk 0:02:25.2]} 11. exd5
{[%clk 0:02:32.7]} 11... exd5 {[%clk 0:02:26.1]} 12. Bb5 {[%clk 0:02:32.9]}
12... Qd6 {[%clk 0:02:04.5]} 13. h3 {[%clk 0:02:24.8]} 13... Rb8 {[%clk
0:02:00.3]} 14. d3 {[%clk 0:02:11.9]} 14... Be6 {[%clk 0:01:17.6]} 15. Bd2
{[%clk 0:02:00.9]} 15... Rb6 {[%clk 0:01:04.2]} 16. Bxc6 {[%clk 0:01:59.7]}
16... Qxc6 {[%clk 0:01:02.9]} 17. Ne2 {[%clk 0:01:56]} 17... Rfb8 {[%clk
0:00:55.5]} 18. Rxb6 {[%clk 0:01:54.9]} 18... Rxb6 {[%clk 0:00:54.2]} 19. Nf4
{[%clk 0:01:55.2]} 19... Bd7 {[%clk 0:00:39.9]} 20. Ne5 {[%clk 0:01:50.6]} 20...
Qd6 {[%clk 0:00:37.8]} 21. d4 {[%clk 0:01:45.4]} 21... cxd4 {[%clk 0:00:16.9]}
22. Bb4 {[%clk 0:01:44.5]} 22... Qb8 {[%clk 0:00:12.4]} 23. Nxd5 {[%clk
0:01:33.3]} 23... Re6 {[%clk 0:00:10]} 24. Nxf6+ {[%clk 0:01:31.7]} 24... Bxf6
{[%clk 0:00:06.2]} 25. Nxd7 {[%clk 0:01:32.6]} 25... Qf4 {[%clk 0:00:04.2]} 26.
Rxe6 {[%clk 0:01:30]} 26... fxe6 {[%clk 0:00:05]} 27. Nxf6+ {[%clk 0:01:29.8]}
27... Qxf6 {[%clk 0:00:05.9]} 28. Qf3 {[%clk 0:01:29.5]} 28... Qe5 {[%clk
0:00:05.2]} 29. Qf8# {[%clk 0:01:28.8]} 1-0

[Event "*** Titled Tuesday Blitz"]
[Site "Chess.com"]
[Date "2021.02.02"]
[Round "6"]
[White "SanQui14"]
[Black "Mambastik-Fantastic"]
[Result "0-1"]
[WhiteElo "2421"]
[BlackElo "2285"]
[TimeControl "180+1"]
[EndTime "11:07:09 PST"]
[Termination "Mambastik-Fantastic won by resignation"]

1. d4 {[%clk 0:02:54.8]} 1... Nf6 {[%clk 0:02:58.2]} 2. c4 {[%clk 0:02:54.6]}
2... g6 {[%clk 0:02:56.6]} 3. Nc3 {[%clk 0:02:54.7]} 3... Bg7 {[%clk 0:02:56.8]}
4. e4 {[%clk 0:02:54.7]} 4... d6 {[%clk 0:02:57.1]} 5. Nf3 {[%clk 0:02:55.2]}
5... O-O {[%clk 0:02:57.6]} 6. Be2 {[%clk 0:02:55.6]} 6... Nbd7 {[%clk 0:02:58]}
7. O-O {[%clk 0:02:56.2]} 7... e5 {[%clk 0:02:57.7]} 8. Be3 {[%clk 0:02:53]}
8... c6 {[%clk 0:02:56.2]} 9. dxe5 {[%clk 0:02:51.8]} 9... dxe5 {[%clk 0:02:56]}
10. c5 {[%clk 0:02:51.2]} 10... Nh5 {[%clk 0:02:48.7]} 11. b4 {[%clk 0:02:49.7]}
11... Nf4 {[%clk 0:02:48.6]} 12. Bc4 {[%clk 0:02:44.4]} 12... Kh8 {[%clk
0:02:47.7]} 13. Qc2 {[%clk 0:02:40.2]} 13... a5 {[%clk 0:02:47.4]} 14. a3 {[%clk
0:02:40.1]} 14... f5 {[%clk 0:02:46.3]} 15. Rad1 {[%clk 0:02:31.4]} 15... axb4
{[%clk 0:02:45.1]} 16. axb4 {[%clk 0:02:32.3]} 16... Ra3 {[%clk 0:02:25.3]} 17.
Rd6 {[%clk 0:02:06.4]} 17... Rxc3 {[%clk 0:02:23.2]} 18. Qxc3 {[%clk 0:02:05.6]}
18... fxe4 {[%clk 0:02:24.1]} 19. Nd2 {[%clk 0:02:02.5]} 19... Qg5 {[%clk
0:02:23.5]} 20. g3 {[%clk 0:01:57.7]} 20... Nf6 {[%clk 0:02:11.6]} 21. Rxf6
{[%clk 0:01:43.8]} 21... Bxf6 {[%clk 0:02:02.5]} 22. Nxe4 {[%clk 0:01:43.6]}
22... Nh3+ {[%clk 0:01:55.4]} 23. Kg2 {[%clk 0:01:43.1]} 23... Qh5 {[%clk
0:01:47.4]} 24. f4 {[%clk 0:01:20]} 24... Bf5 {[%clk 0:01:20.4]} 25. Nxf6 {[%clk
0:01:16.3]} 25... Rxf6 {[%clk 0:01:13]} 26. Qxe5 {[%clk 0:01:16]} 26... Nxf4+
{[%clk 0:00:40]} 27. Rxf4 {[%clk 0:01:14]} 27... Bh3+ {[%clk 0:00:37.9]} 28. Kf2
{[%clk 0:01:13.1]} 28... Qxe5 {[%clk 0:00:37.9]} 29. Bd4 {[%clk 0:00:59.7]}
29... Qxd4+ {[%clk 0:00:37.2]} 0-1

[Event "*** Titled Tuesday Blitz"]
[Site "Chess.com"]
[Date "2021.02.02"]
[Round "6"]
[White "mr65"]
[Black "Ziyamammadov"]
[Result "0-1"]
[WhiteElo "2121"]
[BlackElo "1751"]
[TimeControl "180+1"]
[EndTime "11:07:09 PST"]
[Termination "Ziyamammadov won by resignation"]

1. e4 {[%clk 0:03:00.9]} 1... e6 {[%clk 0:03:00.3]} 2. d4 {[%clk 0:03:00.6]}
2... d5 {[%clk 0:03:00.8]} 3. Nc3 {[%clk 0:03:00.7]} 3... dxe4 {[%clk
0:02:59.9]} 4. Nxe4 {[%clk 0:02:59.5]} 4... Nd7 {[%clk 0:03:00.4]} 5. Bd3 {[%clk
0:02:59.3]} 5... Ngf6 {[%clk 0:02:59.7]} 6. Nxf6+ {[%clk 0:02:59.1]} 6... Nxf6
{[%clk 0:02:51.6]} 7. Nf3 {[%clk 0:02:58.4]} 7... Be7 {[%clk 0:02:48.1]} 8. O-O
{[%clk 0:02:55.3]} 8... O-O {[%clk 0:02:40]} 9. Bf4 {[%clk 0:02:53.4]} 9... h6
{[%clk 0:02:39.6]} 10. Qd2 {[%clk 0:02:52.6]} 10... Re8 {[%clk 0:02:14.9]} 11.
Rfe1 {[%clk 0:02:42.3]} 11... c5 {[%clk 0:02:10.1]} 12. Bxh6 {[%clk 0:02:40.8]}
12... gxh6 {[%clk 0:02:09.4]} 13. Qxh6 {[%clk 0:02:39.7]} 13... Bf8 {[%clk
0:02:08.7]} 14. Qh4 {[%clk 0:02:31]} 14... Bg7 {[%clk 0:01:57.7]} 15. Ng5 {[%clk
0:02:27.6]} 15... Qxd4 {[%clk 0:01:54.5]} 16. Bh7+ {[%clk 0:02:17.6]} 16... Kf8
{[%clk 0:01:50.2]} 17. Qg3 {[%clk 0:02:04.3]} 17... e5 {[%clk 0:01:13.8]} 18.
Rad1 {[%clk 0:02:00.2]} 18... Qg4 {[%clk 0:01:10.9]} 19. Qc3 {[%clk 0:01:42.9]}
19... Nxh7 {[%clk 0:00:48.1]} 20. Nxh7+ {[%clk 0:01:28.5]} 20... Kg8 {[%clk
0:00:24.7]} 21. h3 {[%clk 0:01:14.6]} 21... Qg6 {[%clk 0:00:21.9]} 22. Re3
{[%clk 0:01:10.4]} 22... Qxh7 {[%clk 0:00:20.3]} 0-1

[Event "*** Titled Tuesday Blitz"]
[Site "Chess.com"]
[Date "2021.02.02"]
[Round "6"]
[White "kobemagic"]
[Black "davidkalashian"]
[Result "0-1"]
[WhiteElo "2362"]
[BlackElo "2569"]
[TimeControl "180+1"]
[EndTime "11:07:10 PST"]
[Termination "davidkalashian won by resignation"]

1. c4 {[%clk 0:03:00.3]} 1... Nf6 {[%clk 0:02:58.1]} 2. g3 {[%clk 0:03:01.2]}
2... e6 {[%clk 0:02:59]} 3. Bg2 {[%clk 0:03:01.4]} 3... d5 {[%clk 0:02:59.9]} 4.
Nf3 {[%clk 0:03:01.7]} 4... Be7 {[%clk 0:03:00.4]} 5. O-O {[%clk 0:03:00.6]}
5... O-O {[%clk 0:03:00.8]} 6. d4 {[%clk 0:03:01.2]} 6... dxc4 {[%clk
0:03:00.9]} 7. Qa4 {[%clk 0:03:00]} 7... a6 {[%clk 0:03:00.8]} 8. Qxc4 {[%clk
0:03:00]} 8... b5 {[%clk 0:03:00.6]} 9. Qc2 {[%clk 0:03:00.6]} 9... Bb7 {[%clk
0:03:00.4]} 10. a4 {[%clk 0:03:00.6]} 10... Nbd7 {[%clk 0:02:50.4]} 11. axb5
{[%clk 0:02:57.5]} 11... axb5 {[%clk 0:02:51.3]} 12. Rxa8 {[%clk 0:02:57.5]}
12... Bxa8 {[%clk 0:02:43.7]} 13. Bf4 {[%clk 0:02:57.8]} 13... Nd5 {[%clk
0:02:37.6]} 14. Bd2 {[%clk 0:02:54.6]} 14... c5 {[%clk 0:02:28.3]} 15. dxc5
{[%clk 0:02:43.7]} 15... Nxc5 {[%clk 0:02:25.8]} 16. Nc3 {[%clk 0:02:44.2]}
16... Nb4 {[%clk 0:02:16.1]} 17. Qc1 {[%clk 0:02:36.6]} 17... Bxf3 {[%clk
0:02:12.6]} 18. Bxf3 {[%clk 0:02:32.5]} 18... Nb3 {[%clk 0:02:12.9]} 19. Qd1
{[%clk 0:02:10.3]} 19... Nxd2 {[%clk 0:02:10.1]} 20. Re1 {[%clk 0:02:06.3]}
20... Nxf3+ {[%clk 0:02:03.2]} 21. exf3 {[%clk 0:02:07.2]} 21... Qb6 {[%clk
0:01:48.8]} 22. Qd7 {[%clk 0:02:02.9]} 22... Bf6 {[%clk 0:01:40.4]} 23. Qxb5
{[%clk 0:01:50.3]} 23... Qxb5 {[%clk 0:01:36.7]} 24. Nxb5 {[%clk 0:01:51.2]}
24... Nd3 {[%clk 0:01:37.4]} 25. Rd1 {[%clk 0:01:49.2]} 25... Nxb2 {[%clk
0:01:36]} 26. Rd7 {[%clk 0:01:48.8]} 26... Nc4 {[%clk 0:01:34.9]} 27. Kg2 {[%clk
0:01:46.4]} 27... Rb8 {[%clk 0:01:33.1]} 28. Na7 {[%clk 0:01:38.3]} 28... g5
{[%clk 0:01:25.9]} 29. Nc6 {[%clk 0:01:33.6]} 29... Rb2 {[%clk 0:01:24.6]} 30.
Rc7 {[%clk 0:01:26.8]} 30... Ne3+ {[%clk 0:01:20.5]} 31. Kh3 {[%clk 0:01:24.5]}
31... Rxf2 {[%clk 0:01:20.6]} 32. Rd7 {[%clk 0:00:49.4]} 32... h5 {[%clk
0:01:18.8]} 0-1

[Event "*** Titled Tuesday Blitz"]
[Site "Chess.com"]
[Date "2021.02.02"]
[Round "6"]
[White "Kobalia"]
[Black "BilodeauA"]
[Result "0-1"]
[WhiteElo "2693"]
[BlackElo "2871"]
[TimeControl "180+1"]
[EndTime "11:07:14 PST"]
[Termination "BilodeauA won on time"]

1. e4 {[%clk 0:03:00.9]} 1... e5 {[%clk 0:02:55.6]} 2. Nf3 {[%clk 0:03:00.6]}
2... Nc6 {[%clk 0:02:56.2]} 3. Bb5 {[%clk 0:02:58.7]} 3... a6 {[%clk 0:02:56.4]}
4. Ba4 {[%clk 0:02:57.5]} 4... d6 {[%clk 0:02:56.8]} 5. O-O {[%clk 0:02:55.7]}
5... Bd7 {[%clk 0:02:57.5]} 6. Re1 {[%clk 0:02:53.1]} 6... Nge7 {[%clk
0:02:56.9]} 7. d4 {[%clk 0:02:50.1]} 7... Ng6 {[%clk 0:02:56.9]} 8. c4 {[%clk
0:02:45.9]} 8... Be7 {[%clk 0:02:55.8]} 9. Nc3 {[%clk 0:02:45.7]} 9... O-O
{[%clk 0:02:55.6]} 10. Nd5 {[%clk 0:02:45.8]} 10... Bg4 {[%clk 0:02:52.4]} 11.
Be3 {[%clk 0:01:39.2]} 11... exd4 {[%clk 0:02:47]} 12. Bxd4 {[%clk 0:01:32]}
12... Nce5 {[%clk 0:02:36.8]} 13. Kh1 {[%clk 0:01:19.4]} 13... c6 {[%clk
0:02:35.8]} 14. Nxe7+ {[%clk 0:01:14.8]} 14... Qxe7 {[%clk 0:02:36.7]} 15. Qe2
{[%clk 0:01:00.6]} 15... Nf4 {[%clk 0:02:35.5]} 16. Qd2 {[%clk 0:00:51.2]} 16...
Nxg2 {[%clk 0:02:09.7]} 17. Nxe5 {[%clk 0:00:46.7]} 17... dxe5 {[%clk
0:02:10.4]} 18. Kxg2 {[%clk 0:00:45.9]} 18... Rad8 {[%clk 0:02:03.4]} 19. f3
{[%clk 0:00:35.4]} 19... Be6 {[%clk 0:02:02.7]} 20. Bb3 {[%clk 0:00:26.4]} 20...
Rxd4 {[%clk 0:02:02.8]} 21. Qe3 {[%clk 0:00:26.8]} 21... Rfd8 {[%clk 0:01:58.3]}
22. Re2 {[%clk 0:00:26.6]} 22... c5 {[%clk 0:01:55.1]} 23. Rg1 {[%clk
0:00:24.6]} 23... Rd3 {[%clk 0:01:50.4]} 24. Qf2 {[%clk 0:00:24.1]} 24... Qg5+
{[%clk 0:01:46.7]} 25. Kh1 {[%clk 0:00:23]} 25... Qf4 {[%clk 0:01:46.9]} 26. Rg3
{[%clk 0:00:20.3]} 26... g6 {[%clk 0:01:42.8]} 27. Qxc5 {[%clk 0:00:19.6]} 27...
Rxf3 {[%clk 0:01:40.9]} 28. Qe7 {[%clk 0:00:13.6]} 28... Rxg3 {[%clk 0:01:28.5]}
29. Qxd8+ {[%clk 0:00:12.3]} 29... Kg7 {[%clk 0:01:29.1]} 0-1

[Event "*** Titled Tuesday Blitz"]
[Site "Chess.com"]
[Date "2021.02.02"]
[Round "6"]
[White "Machidon"]
[Black "PavelShkapenko"]
[Result "1/2-1/2"]
[WhiteElo "2559"]
[BlackElo "2724"]
[TimeControl "180+1"]
[EndTime "11:07:14 PST"]
[Termination "Game drawn by repetition"]

1. d4 {[%clk 0:03:00.9]} 1... Nf6 {[%clk 0:02:59.2]} 2. c4 {[%clk 0:02:59.5]}
2... e6 {[%clk 0:02:59.1]} 3. Nc3 {[%clk 0:02:58.5]} 3... Bb4 {[%clk 0:02:58.8]}
4. Bd2 {[%clk 0:02:58.8]} 4... c5 {[%clk 0:02:58.6]} 5. e3 {[%clk 0:02:58.5]}
5... O-O {[%clk 0:02:52]} 6. a3 {[%clk 0:02:55.8]} 6... Bxc3 {[%clk 0:02:51.4]}
7. Bxc3 {[%clk 0:02:56.7]} 7... Ne4 {[%clk 0:02:52]} 8. Rc1 {[%clk 0:02:56.2]}
8... d6 {[%clk 0:02:47]} 9. Nf3 {[%clk 0:02:52.3]} 9... b6 {[%clk 0:02:32.5]}
10. Be2 {[%clk 0:02:42.5]} 10... Bb7 {[%clk 0:02:32.3]} 11. O-O {[%clk 0:02:43]}
11... Nxc3 {[%clk 0:02:31.4]} 12. Rxc3 {[%clk 0:02:42.4]} 12... Qe7 {[%clk
0:02:25.7]} 13. b4 {[%clk 0:02:41.8]} 13... Nd7 {[%clk 0:02:23.6]} 14. Qb3
{[%clk 0:02:27.4]} 14... Nf6 {[%clk 0:02:11.2]} 15. Rd1 {[%clk 0:02:16.8]} 15...
Rac8 {[%clk 0:02:04.6]} 16. a4 {[%clk 0:02:09.7]} 16... Ba8 {[%clk 0:01:54.4]}
17. a5 {[%clk 0:02:06.7]} 17... bxa5 {[%clk 0:01:50.9]} 18. bxc5 {[%clk
0:01:36.5]} 18... dxc5 {[%clk 0:01:47.8]} 19. Qa3 {[%clk 0:01:36.5]} 19... Qc7
{[%clk 0:01:43.9]} 20. Ra1 {[%clk 0:01:36.3]} 20... cxd4 {[%clk 0:01:31.8]} 21.
Nxd4 {[%clk 0:01:18.9]} 21... Ne4 {[%clk 0:01:27.6]} 22. Rc2 {[%clk 0:01:17.7]}
22... Rb8 {[%clk 0:01:08.6]} 23. f3 {[%clk 0:01:09.2]} 23... Nc5 {[%clk
0:00:58]} 24. Qxa5 {[%clk 0:01:09]} 24... Qe7 {[%clk 0:00:42.5]} 25. Qxa7 {[%clk
0:00:49.6]} 25... Qg5 {[%clk 0:00:42.1]} 26. Kf2 {[%clk 0:00:49.6]} 26... Qh4+
{[%clk 0:00:41.9]} 27. Kg1 {[%clk 0:00:48.3]} 27... Qg5 {[%clk 0:00:42.2]} 28.
Kf2 {[%clk 0:00:47.8]} 28... Qh4+ {[%clk 0:00:42.3]} 29. Kg1 {[%clk 0:00:48]}
29... Qg5 {[%clk 0:00:42.7]} 1/2-1/2

[Event "*** Titled Tuesday Blitz"]
[Site "Chess.com"]
[Date "2021.02.02"]
[Round "6"]
[White "cstevens1"]
[Black "PattyCastillo"]
[Result "1-0"]
[WhiteElo "2663"]
[BlackElo "2042"]
[TimeControl "180+1"]
[EndTime "11:07:17 PST"]
[Termination "cstevens1 won by resignation"]

1. e4 {[%clk 0:03:00.9]} 1... c5 {[%clk 0:02:57.8]} 2. Nf3 {[%clk 0:03:01]} 2...
d6 {[%clk 0:02:57.4]} 3. d4 {[%clk 0:03:01.3]} 3... cxd4 {[%clk 0:02:58.3]} 4.
Nxd4 {[%clk 0:03:01.7]} 4... Nf6 {[%clk 0:02:58.4]} 5. f3 {[%clk 0:03:02.1]}
5... a6 {[%clk 0:02:58.3]} 6. c4 {[%clk 0:03:01.6]} 6... e5 {[%clk 0:02:58.5]}
7. Nb3 {[%clk 0:03:01.2]} 7... Be6 {[%clk 0:02:57.8]} 8. Nc3 {[%clk 0:02:59.1]}
8... Nbd7 {[%clk 0:02:52.8]} 9. Be3 {[%clk 0:02:59.4]} 9... Rc8 {[%clk
0:02:52.4]} 10. Nd5 {[%clk 0:02:59.5]} 10... Bxd5 {[%clk 0:02:46.7]} 11. cxd5
{[%clk 0:02:58.9]} 11... Be7 {[%clk 0:02:46]} 12. Qd2 {[%clk 0:02:59.1]} 12...
O-O {[%clk 0:02:45.4]} 13. Be2 {[%clk 0:02:58.6]} 13... Nb6 {[%clk 0:02:24.5]}
14. Na5 {[%clk 0:02:57.1]} 14... Rb8 {[%clk 0:01:57]} 15. O-O {[%clk 0:02:55.6]}
15... Nfd7 {[%clk 0:01:50.8]} 16. Kh1 {[%clk 0:02:44.9]} 16... f5 {[%clk
0:01:48.6]} 17. Bd3 {[%clk 0:02:36.8]} 17... f4 {[%clk 0:01:48.2]} 18. Bg1
{[%clk 0:02:34.8]} 18... Na4 {[%clk 0:01:42.2]} 19. b4 {[%clk 0:02:29.5]} 19...
Qe8 {[%clk 0:01:28.7]} 20. Rfc1 {[%clk 0:02:17.9]} 20... Bd8 {[%clk 0:01:27]}
21. Nc4 {[%clk 0:02:16.3]} 21... Qe7 {[%clk 0:01:22.9]} 22. Rab1 {[%clk
0:02:02.6]} 22... Nab6 {[%clk 0:01:17]} 23. Na5 {[%clk 0:02:01.8]} 23... Qh4
{[%clk 0:00:58.3]} 24. b5 {[%clk 0:01:56.4]} 24... axb5 {[%clk 0:00:56.9]} 25.
Rxb5 {[%clk 0:01:56]} 25... Na4 {[%clk 0:00:57.2]} 26. Nxb7 {[%clk 0:01:51.6]}
26... g5 {[%clk 0:00:46.5]} 27. Nxd6 {[%clk 0:01:49.9]} 27... Rxb5 {[%clk
0:00:43.8]} 28. Bxb5 {[%clk 0:01:50.2]} 28... Nab6 {[%clk 0:00:40.8]} 29. Nf5
{[%clk 0:01:48]} 29... Qh5 {[%clk 0:00:34.4]} 30. Rc6 {[%clk 0:01:37.4]} 30...
Nf6 {[%clk 0:00:29.3]} 31. Bxb6 {[%clk 0:01:33.9]} 31... Bxb6 {[%clk 0:00:28.8]}
32. Rxb6 {[%clk 0:01:34.5]} 32... g4 {[%clk 0:00:29.1]} 33. Be2 {[%clk
0:01:24.4]} 33... g3 {[%clk 0:00:28.3]} 34. h3 {[%clk 0:01:24.1]} 34... Qg6
{[%clk 0:00:14.4]} 35. Ne7+ {[%clk 0:01:23.5]} 1-0